fUSD/lending_fUSD_20240924
["ID","MTS","AMOUNT","RATE_DAILY","PERIOD"]
[339032340,1727147432123,-628.942,0.00012609,2]
[339032342,1727147432132,-2000.0,0.00012698,2]
[339032345,1727147432142,-631.17278,0.000127,2]
[339032348,1727147432151,-335.06816542,0.000127,2]
[339032351,1727147432161,-631.17277997,0.00012711,2]
[339032354,1727147432170,-631.17277997,0.00012722,2]
[339032357,1727147432179,-631.17277997,0.00012733,2]
[339032360,1727147432188,-631.17277997,0.00012744,2]
[339032362,1727147432198,-631.17277997,0.00012756,2]
[339032364,1727147432208,-631.17277997,0.00012767,2]
[339032365,1727147432218,-161.24014388,0.00012773,2]
[339032366,1727147432228,-3757.85655835,0.00012774,2]
[339032367,1727147432237,-631.17277997,0.00012778,2]
[339032368,1727147432246,-597.699,0.00012783,2]
[339032369,1727147432255,-152.279,0.00012783,2]
[339032370,1727147432265,-1626.827,0.00012784,2]
[339032371,1727147432274,-3348.0,0.00012784,2]
[339032372,1727147432283,-807.0,0.00012784,2]
[339032373,1727147432293,-1912.0,0.00012784,2]
[339032374,1727147432302,-248.0,0.00012784,2]
[339032375,1727147432312,-631.17277997,0.00012789,2]
[339032376,1727147432321,-156.96,0.0001279,2]
[339032377,1727147432331,-8645.8963769,0.00012797,2]
[339032378,1727147432340,-44167.0922771,0.00012797,2]
[339032379,1727147432349,-1221.5269337,0.00012797,2]
[339032380,1727147432359,-836.6702212,0.00012797,2]
[339032381,1727147432368,-878.87033086,0.00012799,2]
[339032382,1727147432377,-729.0,0.000128,2]
[339032383,1727147432387,-73644.39614255,0.000128,2]
[339032384,1727147432529,-417.58479186,0.000128,2]
[339032386,1727147438017,-310.24010705,0.000128,2]
[339032387,1727147438028,-1826.19952413,0.000128,2]
[339032388,1727147438040,-3552.86301477,0.000128,2]
[339032389,1727147438050,-41564.66680377,0.000128,2]
[339032390,1727147438061,-29419.30700953,0.000128,2]
[339032391,1727147438193,-521.5005302,0.000128,2]
[339032392,1727147438380,-770.28030709,0.000128,2]
[339032393,1727147438391,-275.96458678,0.000128,2]
[339032394,1727147440032,-417.14731282,0.000128,2]
[339032480,1727147443132,-232.85268718,0.000128,2]
[339032481,1727147443142,-3145.05056506,0.000128,2]
[339032482,1727147443555,-555.558903,0.000128,2]
[339032483,1727147443567,-79407.60121063,0.000128,2]
[339032495,1727147445979,-435.93874686,0.000128,2]
[339032496,1727147446041,-1203.491268,0.000128,2]
[339032518,1727147513530,166.38,0.00010959,2]
[339032519,1727147549115,890.85,0.00010036,2]
[339032520,1727148053362,179.2,0.00010959,2]
[339032521,1727148153050,846.3,9.951e-05,2]
[339032522,1727148165162,529.24,0.00030625,30]
[339032546,1727148466886,1007.16847572,0.00030625,120]
[339032548,1727148495037,10073.0,0.00030625,120]
[339032549,1727148518223,2587.31576672,0.0001,2]
[339032550,1727148521880,279.18393516,0.0001,2]
[339032556,1727148600147,1050.0,0.00011,2]
[339032576,1727148631922,-312.02099594,0.00011784,2]
[339032577,1727148631935,-207.97900406,0.00011784,2]
[339032578,1727148631944,-359.16099594,0.00011801,2]
[339032579,1727148632043,-1217.36900406,0.00011801,2]
[339032580,1727148632052,-191.21,0.00011827,2]
[339032581,1727148632068,-250.0,0.00011862,2]
[339032582,1727148632077,-250.0,0.00011868,2]
[339032583,1727148632087,-480.0,0.00011883,2]
[339032584,1727148632095,-222.27,0.00011904,2]
[339032585,1727148632106,-300.0,0.00012071,2]
[339032586,1727148632115,-6941.61566483,0.00012072,2]
[339032587,1727148632124,-846.3,0.00012214,2]
[339032588,1727148632133,-167.08,0.00012445,2]
[339032589,1727148632144,-12510.0,0.00012463,7]
[339032590,1727148632154,-330.96523757,0.00012509,2]
[339032591,1727148632163,-2000.0,0.00012698,2]
[339032593,1727148632172,-201.72004874,0.000127,2]
[339032595,1727148632181,-150.0,0.00012779,2]
[339032597,1727148632190,-59254.31740232,0.0001278,2]
[339032598,1727148632199,-156.97,0.0001279,2]
[339032599,1727148632208,-478.159,0.00012799,2]
[339032600,1727148632218,-152.279,0.00012799,2]
[339032601,1727148632227,-1000.0,0.00012799,2]
[339032602,1727148632236,-590.0,0.000128,2]
[339032603,1727148632246,-40168.9724554,0.000128,2]
[339032604,1727148632256,-389026.52578713,0.000128,2]
[339032605,1727148632278,-272.1846872,0.000128,2]
[339032606,1727148638121,-1002.42417311,0.000128,2]
[339032607,1727148638133,-357.98641747,0.000128,2]
[339032608,1727148638146,-1067.06224466,0.000128,2]
[339032611,1727148638414,-2424.99999999,0.000128,2]
[339032612,1727148638426,-5124.74242063,0.000128,2]
[339032618,1727148639904,-5670.89587891,0.000128,2]
[339032619,1727148640039,-1055.31356688,0.000128,2]
[339032620,1727148640050,-316.524175,0.000128,2]
[339032724,1727148645995,-286.741,0.000128,2]
[339032725,1727148646089,-237.259,0.000128,2]
[339032726,1727148646100,-742.93788546,0.000128,2]
[339032727,1727148646112,-1568.09983154,0.000128,2]
[339032728,1727148646127,-6219.61452895,0.000128,2]
[339032731,1727148714474,761.67,0.00010008,2]
[339032732,1727148795470,175.76,0.00010959,2]
[339032733,1727149356341,500.0,0.00030639,30]
[339032734,1727149366534,723.58,9.886e-05,2]
[339032735,1727149369510,271.49,0.00010959,2]
[339032767,1727149793716,83124.49233834,0.00030639,30]
[339032768,1727149806445,1403.0101992,0.00030639,30]
[339032773,1727149831963,-7527.347149,0.00011726,2]
[339032774,1727149831973,-250.0,0.00011785,2]
[339032775,1727149831983,-3311.652851,0.00011803,2]
[339032776,1727149832078,-261.39657885,0.00011803,2]
[339032777,1727149832090,-3831.16040795,0.00011803,2]
[339032778,1727149832102,-1452.5401622,0.00011803,2]
[339032779,1727149832112,-191.21,0.00011804,2]
[339032780,1727149832122,-422.38,0.00011804,2]
[339032781,1727149832131,-1000.0,0.00011812,2]
[339032782,1727149832141,-150.0,0.00011836,2]
[339032783,1727149832151,-250.0,0.00011874,2]
[339032784,1727149832160,-154.9,0.00011931,2]
[339032785,1727149832170,-723.58,0.0001215,2]
[339032786,1727149832180,-701.20670219,0.00012698,2]
[339032787,1727149832191,-1298.79329781,0.00012698,2]
[339032788,1727149832200,-187.84529459,0.000127,2]
[339032789,1727149832210,-317.68182673,0.000127,2]
[339032790,1727149832219,-156.53,0.0001279,2]
[339032791,1727149832228,-500.0,0.00012799,2]
[339032792,1727149832237,-152.25830809,0.00012799,2]
[339032793,1727149832253,-132.25787409,0.00012799,2]
[339032794,1727149832262,-500.0,0.00012799,2]
[339032795,1727149832272,-382.527,0.00012799,2]
[339032796,1727149832283,-152.279,0.00012799,2]
[339032797,1727149832292,-332.93612591,0.000128,2]
[339032798,1727149832303,-2922.2,0.000128,2]
[339032799,1727149832315,-792.5901174,0.000128,2]
[339032800,1727149832329,-1974.8225,0.000128,2]
[339032801,1727149832342,-543.18445368,0.000128,2]
[339032802,1727149832354,-542.67878054,0.000128,2]
[339032803,1727149832365,-598.97184433,0.000128,2]
[339032804,1727149832376,-454.32771347,0.000128,2]
[339032805,1727149838203,-509.55337076,0.000127,2]
[339032806,1727149838212,-41494.98191762,0.000128,2]
[339032807,1727149838222,-1731389.59935421,0.000128,2]
[339032808,1727149838236,-5906.63080696,0.000128,2]
[339032809,1727149838248,-1553.36275169,0.000128,2]
[339032810,1727149838316,-537.0,0.000128,2]
[339032811,1727149838327,-503.33525428,0.000128,2]
[339032812,1727149838435,-5841.00021091,0.000128,2]
[339032813,1727149838447,-8161.55232809,0.000128,2]
[339032814,1727149838460,-990.63368508,0.000128,2]
[339032833,1727149839885,-3170.01195793,0.000128,2]
[339032834,1727149839896,-106145.52070486,0.000128,2]
[339032835,1727149839910,-961.27203814,0.000128,2]
[339032836,1727149839953,-1025.24744927,0.000128,2]
[339032837,1727149839966,-1439.07083368,0.000128,2]
[339032838,1727149840071,-1399.85886565,0.000128,2]
[339032839,1727149840133,-70178.03108389,0.000128,2]
[339032886,1727149843061,-261.35660516,0.000127,2]
[339032887,1727149843072,-168.1806791,0.000127,2]
[339032888,1727149843082,-49.13387694,0.00012711,2]
[339032889,1727149843095,-323.966194,0.00012711,2]
[339032890,1727149843109,-136.45329978,0.00012711,2]
[339032891,1727149843119,-491.140839,0.000128,2]
[339032892,1727149843228,-869.95370905,0.000128,2]
[339032893,1727149843286,-1968.40098272,0.000128,2]
[339032894,1727149843344,-778.84,0.000128,2]
[339032898,1727149845917,-509.55337072,0.00012722,2]
[339032899,1727149845927,-3108.96864353,0.000128,2]
[339032900,1727149846027,-190558.68334031,0.000128,2]
[339032901,1727149846140,-1451.53029932,0.000128,2]
[339032902,1727149933924,689.82,9.957e-05,2]
[339032903,1727150023393,500.6,0.00030639,30]
[339032904,1727150054732,1277.1595199,0.00030639,30]
[339032905,1727150315441,2219925.39294286,0.00030636,30]
[339032906,1727150404855,1050.0,0.00011,2]
[339032908,1727150722205,166.38,0.00010959,2]
[339032918,1727150811094,693.91,9.398e-05,2]
[339032933,1727150982185,1060.85430663,0.00011,2]
[339032938,1727151032129,-549.56631978,0.00011206,2]
[339032939,1727151032183,-340.28165674,0.00011206,2]
[339032940,1727151032195,-263.99149982,0.00011206,2]
[339032941,1727151032207,-2157.17272366,0.00011206,2]
[339032942,1727151032217,-1677.00912899,0.00011306,2]
[339032943,1727151032236,-440.57660707,0.00011306,2]
[339032944,1727151032248,-2946.57874193,0.00011306,2]
[339032945,1727151032290,-8630.5353258,0.00011306,2]
[339032946,1727151032302,-655.60712406,0.00011306,2]
[339032947,1727151032347,-1167.26,0.00011306,2]
[339032948,1727151032403,-4882.43307215,0.00011306,2]
[339032949,1727151032413,-5875.74,0.00011316,2]
[339032950,1727151032424,-150.0,0.00011338,2]
[339032951,1727151032433,-150.0,0.00011589,2]
[339032952,1727151032442,-150.0,0.00011589,2]
[339032953,1727151032453,-150.0,0.00011589,2]
[339032954,1727151032462,-150.0,0.00011589,2]
[339032955,1727151032471,-150.0,0.00011589,2]
[339032956,1727151032481,-154.11659642,0.00011589,2]
[339032957,1727151032490,-274.14000682,0.00011589,2]
[339032958,1727151032499,-150.0,0.00011589,2]
[339032959,1727151032509,-150.0,0.00011589,2]
[339032960,1727151032519,-150.0,0.00011589,2]
[339032961,1727151032528,-150.0,0.00011589,2]
[339032962,1727151032537,-150.6860011,0.00011589,2]
[339032963,1727151032546,-150.0,0.00011589,2]
[339032964,1727151032556,-163.48799456,0.00011589,2]
[339032965,1727151032565,-150.0,0.00011589,2]
[339032966,1727151032574,-151.63472798,0.00011589,2]
[339032967,1727151032583,-150.0,0.00011627,2]
[339032968,1727151032593,-250.0,0.00011648,2]
[339032969,1727151032602,-693.91,0.00011662,2]
[339032970,1727151032611,-150.0,0.00011665,2]
[339032971,1727151032621,-1000.0,0.00011684,2]
[339032972,1727151032630,-159.04,0.00011689,2]
[339032973,1727151032639,-154.9,0.00011692,2]
[339032974,1727151032648,-773.24,0.00011692,2]
[339032975,1727151032658,-150.0,0.00011703,2]
[339032976,1727151032667,-150.0,0.00011706,2]
[339032977,1727151032676,-1199.75,0.00011715,2]
[339032978,1727151032686,-250.0,0.0001173,2]
[339032979,1727151032695,-150.0,0.00011741,2]
[339032980,1727151032704,-150.0,0.00011778,2]
[339032981,1727151032714,-482.49,0.00011812,2]
[339032982,1727151032723,-150.0,0.00011816,2]
[339032983,1727151032732,-150.0,0.00011823,2]
[339032984,1727151032742,-150.0,0.00011847,2]
[339032985,1727151032751,-150.0,0.00011854,2]
[339032986,1727151032759,-150.0,0.00011892,2]
[339032987,1727151032769,-150.0,0.0001193,2]
[339032988,1727151032778,-150.0,0.0001194,2]
[339032989,1727151032787,-150.0,0.00011968,2]
[339032990,1727151032797,-150.0,0.00012006,2]
[339032991,1727151032806,-150.0,0.00012044,2]
[339032992,1727151032816,-150.0,0.00012057,2]
[339032993,1727151032826,-150.0,0.00012081,2]
[339032994,1727151032835,-150.0,0.00012104,2]
[339032995,1727151032845,-150.0,0.00012119,2]
[339032996,1727151032855,-10000.0,0.00012149,2]
[339032997,1727151032864,-150.0,0.00012157,2]
[339032998,1727151032873,-150.0,0.00012174,2]
[339032999,1727151032882,-150.0,0.00012195,2]
[339033000,1727151032892,-150.0,0.00012233,2]
[339033001,1727151032901,-150.0,0.00012233,2]
[339033002,1727151032910,-150.0,0.00012233,2]
[339033003,1727151032919,-150.0,0.00012233,2]
[339033004,1727151032929,-150.0,0.00012233,2]
[339033005,1727151032938,-150.0,0.00012271,2]
[339033006,1727151032947,-150.0,0.00012291,2]
[339033007,1727151032956,-150.0,0.00012309,2]
[339033008,1727151032966,-150.0,0.00012346,2]
[339033009,1727151032975,-150.0,0.00012362,2]
[339033010,1727151032984,-150.0,0.00012384,2]
[339033011,1727151032993,-150.0,0.00012408,2]
[339033012,1727151033002,-150.0,0.00012422,2]
[339033013,1727151033011,-153.52,0.00012445,2]
[339033014,1727151033020,-150.0,0.0001246,2]
[339033015,1727151033030,-150.155122,0.00012479,2]
[339033016,1727151033039,-150.0,0.00012498,2]
[339033017,1727151033050,-151.04,0.000125,2]
[339033018,1727151033059,-150.0,0.00012526,2]
[339033019,1727151033069,-150.0,0.00012536,2]
[339033020,1727151033079,-150.0,0.00012574,2]
[339033021,1727151033088,-5403.79370653,0.000126,2]
[339033022,1727151033097,-150.0,0.00012612,2]
[339033023,1727151033107,-248.0,0.00012613,2]
[339033024,1727151033116,-806.0,0.00012613,2]
[339033025,1727151033126,-1914.0,0.00012613,2]
[339033026,1727151033135,-3346.0,0.00012613,2]
[339033027,1727151033145,-5867.0,0.00012613,2]
[339033028,1727151033162,-152.368,0.00012613,2]
[339033029,1727151033172,-1147.0,0.00012613,2]
[339033030,1727151033182,-2406.304,0.00012613,2]
[339033031,1727151033192,-150.0,0.00012619,2]
[339033032,1727151033205,-5403.79370646,0.00012622,2]
[339033033,1727151033214,-150.0,0.00012643,2]
[339033034,1727151033224,-5403.79370646,0.00012644,2]
[339033035,1727151033234,-150.0,0.00012649,2]
[339033036,1727151033244,-5403.79370646,0.00012667,2]
[339033037,1727151033253,-150.155122,0.00012687,2]
[339033038,1727151033263,-150.0,0.00012687,2]
[339033039,1727151033272,-5403.79370646,0.00012689,2]
[339033040,1727151033283,-2000.0,0.00012698,2]
[339033041,1727151033292,-1228.0033,0.00012698,2]
[339033042,1727151033302,-17962.117559,0.000127,2]
[339033043,1727151033312,-11683.74284625,0.000127,2]
[339033044,1727151033326,-42310.53914742,0.000127,2]
[339033045,1727151033337,-5247.45786572,0.000127,2]
[339033051,1727151038414,-1081.926,0.00012613,2]
[339033052,1727151038425,-15778.83127298,0.000127,2]
[339033053,1727151038435,-370.8648,0.000127,2]
[339033054,1727151038445,-1129.0,0.000127,2]
[339033055,1727151038457,-5403.79370646,0.00012711,2]
[339033056,1727151038467,-150.0,0.00012725,2]
[339033057,1727151038477,-5403.79370646,0.00012733,2]
[339033058,1727151038488,-5403.79370646,0.00012756,2]
[339033059,1727151038497,-150.0,0.0001276,2]
[339033060,1727151038507,-150.0,0.00012763,2]
[339033061,1727151038517,-306.022,0.0001277,2]
[339033062,1727151038528,-152.28072692,0.0001277,2]
[339033063,1727151038539,-201.72004874,0.00012773,2]
[339033064,1727151038548,-5403.79370646,0.00012778,2]
[339033065,1727151038558,-186.2042311,0.0001279,2]
[339033066,1727151038569,-154.88093771,0.0001279,2]
[339033067,1727151038579,-325.13094585,0.0001279,2]
[339033068,1727151038588,-7500.0,0.0001279,2]
[339033069,1727151038598,-1549.0,0.00012793,2]
[339033070,1727151038607,-628.91,0.00012793,2]
[339033071,1727151038616,-448.0,0.00012793,2]
[339033072,1727151038625,-1268.765,0.00012793,2]
[339033073,1727151038635,-810.0,0.00012793,2]
[339033074,1727151038644,-553.0,0.00012793,2]
[339033075,1727151038654,-1903.0,0.00012793,2]
[339033076,1727151038663,-325.13094585,0.00012795,2]
[339033077,1727151038673,-299.17444717,0.00012799,2]
[339033099,1727151038872,-11880.75829834,0.00012799,2]
[339033101,1727151038882,-500.0,0.000128,2]
[339033103,1727151038892,-500.0,0.000128,2]
[339033105,1727151038901,-500.0,0.000128,2]
[339033107,1727151038911,-500.0,0.000128,2]
[339033109,1727151038921,-500.0,0.000128,2]
[339033111,1727151038931,-500.0,0.000128,2]
[339033113,1727151038940,-500.0,0.000128,2]
[339033115,1727151038950,-500.0,0.000128,2]
[339033117,1727151038959,-500.0,0.000128,2]
[339033119,1727151038968,-500.0,0.000128,2]
[339033121,1727151038977,-500.0,0.000128,2]
[339033123,1727151038987,-500.0,0.000128,2]
[339033125,1727151038996,-1500.0,0.000128,2]
[339033127,1727151039006,-1500.0,0.000128,2]
[339033129,1727151039015,-1500.0,0.000128,2]
[339033131,1727151039024,-1500.0,0.000128,2]
[339033133,1727151039034,-1500.0,0.000128,2]
[339033135,1727151039043,-1500.0,0.000128,2]
[339033137,1727151039053,-1500.0,0.000128,2]
[339033139,1727151039063,-1500.0,0.000128,2]
[339033141,1727151039072,-1796.29,0.000128,2]
[339033143,1727151039081,-1500.0,0.000128,2]
[339033145,1727151039091,-709.62,0.000128,6]
[339033147,1727151039100,-154.88093771,0.000128,2]
[339033149,1727151039110,-293.36,0.000128,2]
[339033151,1727151039120,-156.41315591,0.000128,2]
[339033153,1727151039129,-156.41315591,0.000128,2]
[339033155,1727151039139,-156.41315591,0.000128,2]
[339033157,1727151039149,-156.41315591,0.000128,2]
[339033159,1727151039158,-156.91,0.000128,2]
[339033161,1727151039168,-325.13094585,0.000128,2]
[339033163,1727151039177,-5403.79370646,0.000128,2]
[339033165,1727151039187,-1525.82628136,0.000128,2]
[339033167,1727151039197,-1422.70910397,0.000128,2]
[339033169,1727151039206,-150.0,0.00012801,2]
[339033171,1727151039216,-2320.884766,0.00012813,2]
[339033173,1727151039226,-542.5806385,0.00012813,2]
[339033175,1727151039236,-31747.1005073,0.00012822,2]
[339033177,1727151039245,-150.0,0.00012839,2]
[339033179,1727151039255,-500.0,0.00012867,2]
[339033181,1727151039266,-2000.85198195,0.0001287,2]
[339033183,1727151039276,-69995.65958288,0.0001287,2]
[339033185,1727151039286,-156.51132229,0.00012873,2]
[339033187,1727151039296,-500.0,0.00012876,2]
[339033189,1727151039305,-50658.0,0.00012877,2]
[339033191,1727151039315,-785.0,0.00012877,2]
[339033193,1727151039325,-150.0,0.00012877,2]
[339033195,1727151039335,-150.00000001,0.00012877,2]
[339033197,1727151039345,-150.0,0.00012877,2]
[339033199,1727151039354,-150.0,0.00012877,2]
[339033201,1727151039364,-150.00000001,0.00012877,2]
[339033203,1727151039374,-150.0,0.00012877,2]
[339033205,1727151039386,-150.00000001,0.00012877,2]
[339033207,1727151039396,-150.0,0.00012877,2]
[339033209,1727151039405,-151.11046598,0.00012877,2]
[339033211,1727151039415,-150.32281325,0.00012877,2]
[339033213,1727151039425,-150.09153164,0.00012877,2]
[339033215,1727151039434,-500.0,0.00012885,2]
[339033217,1727151039444,-482.5422687,0.00012889,2]
[339033219,1727151039454,-500.0,0.00012889,2]
[339033220,1727151039463,-500.0,0.00012889,2]
[339033222,1727151039473,-311.46367107,0.00012889,2]
[339033224,1727151039483,-529.0,0.0001289,2]
[339033226,1727151039492,-763026.93395421,0.0001289,3]
[339033228,1727151039501,-266278.45781877,0.0001289,3]
[339033231,1727151039514,-6292.80742162,0.0001289,3]
[339033571,1727151043273,-7624.76250518,0.0001289,3]
[339033808,1727151046143,-353.57058621,0.0001289,3]
[339033810,1727151366752,657.2,9.973e-05,2]
[339033811,1727151473478,170.24,0.00010959,2]
[339033822,1727152024031,175.76,0.00010959,2]
[339033830,1727152087053,624.34,9.485e-05,2]
[339033833,1727152208289,1050.0,0.00011,2]
[339033853,1727152238547,-250.0,0.00011295,2]
[339033854,1727152238557,-385.99,0.00011335,2]
[339033855,1727152238567,-250.0,0.0001134,2]
[339033856,1727152238576,-200.0,0.00011371,2]
[339033857,1727152238585,-82.71766274,0.00011383,2]
[339033858,1727152238596,-115.69233726,0.00011383,2]
[339033859,1727152238605,-300.0,0.0001139,2]
[339033860,1727152238614,-2323.78592906,0.00011391,2]
[339033861,1727152238767,-21566.21407094,0.00011391,2]
[339033862,1727152238777,-624.34,0.00011749,2]
[339033863,1727152238786,-154.65,0.00011804,2]
[339033864,1727152238795,-154.65,0.00011809,2]
[339033865,1727152238804,-154.65,0.00011814,2]
[339033866,1727152238816,-154.65,0.0001182,2]
[339033867,1727152238825,-154.65,0.00011825,2]
[339033868,1727152238834,-499.99,0.00011825,2]
[339033869,1727152238843,-5508.55,0.00011825,2]
[339033870,1727152238852,-154.65,0.00011831,2]
[339033871,1727152238863,-154.65,0.00011836,2]
[339033872,1727152238872,-154.65,0.00011841,2]
[339033873,1727152238881,-154.65,0.00011847,2]
[339033874,1727152238891,-154.65,0.00011852,2]
[339033875,1727152238900,-154.65,0.00011857,2]
[339033876,1727152238910,-154.65,0.00011863,2]
[339033877,1727152238919,-1000.0,0.00011893,2]
[339033878,1727152238929,-486.98,0.00011898,2]
[339033880,1727152238938,-1050.08434716,0.00011952,2]
[339033881,1727152238947,-1359.0415819,0.00012164,2]
[339033887,1727152240299,-8640.9584181,0.00012164,2]
[339033888,1727152240309,-10000.0,0.00012164,2]
[339033889,1727152240318,-167.08,0.00012445,2]
[339033890,1727152240328,-1004.0,0.000125,2]
[339033891,1727152240337,-420.0,0.00012511,2]
[339033892,1727152240347,-2537.0725,0.000126,2]
[339033893,1727152240356,-398.049,0.00012622,2]
[339033894,1727152240366,-324.74382373,0.0001269,2]
[339033895,1727152240375,-3801.4732,0.0001269,2]
[339033896,1727152240385,-261.1396,0.0001269,2]
[339033897,1727152240394,-2500.0,0.0001269,2]
[339033898,1727152240404,-324.74382371,0.00012702,2]
[339033899,1727152240413,-324.74382371,0.00012714,2]
[339033900,1727152240423,-324.74382371,0.00012727,2]
[339033901,1727152240432,-324.74382371,0.00012739,2]
[339033902,1727152240441,-324.74382371,0.00012751,2]
[339033903,1727152240451,-385.99,0.00012752,2]
[339033904,1727152240460,-324.74382371,0.00012763,2]
[339033905,1727152240470,-324.74382371,0.00012776,2]
[339033906,1727152240479,-244.817,0.00012777,2]
[339033907,1727152240489,-2000.0,0.00012787,2]
[339033908,1727152240498,-324.74382371,0.00012788,2]
[339033909,1727152240508,-176.40993535,0.0001279,2]
[339033910,1727152240517,-6920.75,0.0001279,2]
[339033911,1727152240527,-33053.7802,0.0001279,2]
[339033912,1727152240536,-4253.0155,0.0001279,2]
[339033913,1727152240545,-60071.31100603,0.0001279,2]
[339033918,1727152243446,-266.47,0.00012164,2]
[339033919,1727152243613,-4257.28095519,0.00012164,2]
[339033920,1727152243622,-3109.83399749,0.0001279,2]
[339033928,1727152246252,-238.2012,0.0001269,2]
[339033929,1727152246262,-205.0329381,0.0001279,2]
[339033931,1727152585425,257.91,0.00010959,2]
[339033932,1727152661863,561.9,9.948e-05,2]
[339033973,1727153317855,533.8,9.894e-05,2]
[339033996,1727153431485,-250.0,0.00011814,2]
[339033997,1727153431495,-121.6925449,0.00011863,2]
[339033998,1727153431506,-128.3074551,0.00011863,2]
[339033999,1727153431516,-389.58,0.00011876,2]
[339034000,1727153431525,-198.41,0.00011883,2]
[339034001,1727153431535,-154.9,0.00011914,2]
[339034002,1727153431545,-1000.0,0.00011923,2]
[339034003,1727153431554,-533.8,0.00012158,2]
[339034004,1727153431563,-150.0,0.00012329,2]
[339034005,1727153431573,-150.155123,0.00012363,2]
[339034006,1727153431582,-238.92322342,0.00012484,2]
[339034007,1727153431594,-3442.43677658,0.00012484,2]
[339034008,1727153431603,-1010.0,0.000125,2]
[339034009,1727153431613,-237.73636191,0.00012542,2]
[339034010,1727153431622,-861.8643932,0.00012784,2]
[339034011,1727153431631,-150.0,0.00012789,2]
[339034012,1727153431640,-300.0,0.00012789,2]
[339034013,1727153431650,-195.854,0.0001279,2]
[339034014,1727153431660,-200.0,0.0001279,2]
[339034015,1727153431670,-339.39239905,0.0001279,2]
[339034016,1727153431679,-234.69,0.000128,2]
[339034017,1727153431688,-327.66915388,0.000128,2]
[339034018,1727153431697,-7500.0,0.000128,2]
[339034019,1727153431707,-932.0,0.00012801,2]
[339034020,1727153431716,-809.0,0.00012801,2]
[339034021,1727153431725,-676.35691603,0.00012801,2]
[339034022,1727153431736,-404.64308397,0.00012801,2]
[339034023,1727153431746,-595.85691963,0.0001287,2]
[339034024,1727153431757,-465.13616089,0.0001287,2]
[339034025,1727153431769,-316.12638037,0.0001287,2]
[339034026,1727153431782,-9192.18482449,0.0001287,2]
[339034027,1727153431791,-187.07397752,0.0001288,2]
[339034028,1727153431801,-157.1,0.0001288,2]
[339034029,1727153431810,-3122.979678,0.00012885,2]
[339034030,1727153431821,-730.0958378,0.00012885,2]
[339034031,1727153431830,-13227.4188602,0.00012885,2]
[339034032,1727153431839,-25185.34672638,0.0001289,2]
[339034033,1727153431850,-33671.36966731,0.0001289,3]
[339034034,1727153431861,-7011.24858087,0.0001289,3]
[339034036,1727153431872,-57728.18810391,0.0001289,3]
[339034038,1727153431887,-5149.76122802,0.0001289,3]
[339034040,1727153431899,-387.02289021,0.0001289,3]
[339034042,1727153431911,-28443.27290558,0.0001289,3]
[339034043,1727153431922,-13698.38536391,0.0001289,3]
[339034044,1727153431933,-684.71908266,0.0001289,3]
[339034045,1727153431945,-13024.37793672,0.0001289,3]
[339034046,1727153431956,-280904.33151268,0.0001289,3]
[339034047,1727153431965,-7662.34172581,0.0001289,3]
[339034048,1727153431977,-669.94125223,0.0001289,3]
[339034049,1727153431987,-18322.17722819,0.0001289,3]
[339034050,1727153431999,-2999.0,0.0001289,3]
[339034051,1727153432010,-315.29707946,0.0001289,3]
[339034052,1727153432021,-913.26386626,0.0001289,3]
[339034053,1727153432032,-909.82345012,0.0001289,3]
[339034054,1727153432043,-1157.16,0.0001289,3]
[339034055,1727153432054,-270.26587227,0.0001289,3]